Cogmind - Beta 14 @@@ ROGUE MODE // 2024.09.17 @ 20:10:34 Player: star Result: Destroyed by C-57 Dissector with Dual-blade Saw Performance ------------- Evolutions (8) 4000 Regions Visited (11) 2200 Robots Destroyed (135) 675 Value Destroyed (4338) 4338 Prototype IDs (15) 300 Alien Tech Used (0) 0 Bonus (1542) 1542 TOTAL SCORE: 13055 Bonus ------- Triggered High Security 500 High Alert Combat Kills 1099 Follower Combat Kills 25 Friendly Fire -82 Cogmind --------- Core Integrity 0/1450 Matter 247/300 Energy 99/100 System Corruption 21% Temperature Cool (0) Movement Core (50) Location -2/Research Parts ------- > --- POWER (2) -------- (None) > --- PROPULSION (14) -- (None) > --- UTILITY (4) ------ Advanced Gravity Neutralizer Machine Analyzer > --- WEAPON (3) ------- (None) > --- INVENTORY (5) ---- System Shield Faulty Precision Phase Gun Compact HERF Cannon Compact Linear Accelerator Advanced Datajack Peak State ------------ > --- POWER ------------ Particle Reactor > --- PROPULSION ------- Medium Treads Advanced Medium Treads Myomer Leg Myomer Leg Improved Antigrav System Nuclear Pulse Array Field Propulsion Array Q-thruster Q-thruster > --- UTILITY ---------- Spectral Analyzer Improved Transmission Jammer Heavy Armor Plating > --- WEAPON ----------- Railgun Powered Hammer > --- INVENTORY -------- Layered Medium Armor Plating Thermal Shield System Shield Advanced Datajack [Rating: 116] Favorites ----------- Power Light Nuclear Core Engine Light Deuterium Engine Power Core Light Nuclear Core Reactor Cold Fusion Reactor Propulsion Cooled Airjet Treads Medium Treads Leg Carbon-fiber Leg Wheel Wheel Hover Unit Cooled Airjet Flight Unit Xenon Bombardment Thruster Utility Small Storage Unit Device Reaction Control System Storage Small Storage Unit Processor Enhanced Optical Array Hackware Hacking Suite Protection Reactive Plating Weapon Shotgun Energy Gun Improved Spread Laser Energy Cannon Long-range Proton Cannon Ballistic Gun Shotgun Ballistic Cannon Assault Cannon Launcher Mini Grenade Launcher Impact Weapon Great Maul Slashing Weapon Blade Saw Build | -11 -10 -10 -10 -9 -8 -7 -6 -5 -4 -3 -2 ------- Run | Yrd Mat Min Exi Min Mat Fac Fac Fac Fac Res Res Slots Evolved 16 | . . . . . 4 2 2 2 2 2 2 Power 1 | . . . . . 1 . . . . . . Propulsion 12 | . . . . . 2 2 . 2 2 2 2 Utility 2 | . . . . . . . 2 . . . . Weapon 1 | . . . . . 1 . . . . . . Parts Attached 191 | 5 16 4 2 . 66 47 12 12 8 10 9 Power 25 | . 2 . . . 9 8 2 1 . 1 2 Engine 10 | . 1 . . . 2 4 1 1 . . 1 Core 12 | . 1 . . . 7 4 . . . . . Reactor 3 | . . . . . . . 1 . . 1 1 Propulsion 71 | 2 7 3 . . 29 14 2 4 5 5 . Treads 8 | . . . . . 5 . 1 . 1 1 . Leg 16 | . . . . . 13 . . . 1 2 . Wheel 4 | 2 2 . . . . . . . . . . Hover 33 | . 5 3 . . 11 10 1 2 1 . . Flight 10 | . . . . . . 4 . 2 2 2 . Utility 37 | 1 1 . . . 5 12 7 3 2 2 4 Device 14 | . . . . . . 7 2 2 1 . 2 Storage 4 | 1 . . . . 1 1 . 1 . . . Processor 6 | . . . . . . 2 2 . . 1 1 Hackware 3 | . 1 . . . . . 2 . . . . Protection 10 | . . . . . 4 2 1 . 1 1 1 Artifact . | . . . . . . . . . . . . Weapon 58 | 2 6 1 2 . 23 13 1 4 1 2 3 Energy Gun 13 | 2 . . . . 9 1 . . . . 1 Energy Cannon 10 | . 4 . . . 1 . . 3 . 1 1 Ballistic Gun 20 | . 2 1 2 . 9 4 1 . . 1 . Ballistic Cannon 3 | . . . . . 2 . . . . . 1 Launcher 5 | . . . . . 2 3 . . . . . Special Weapon . | . . . . . . . . . . . . Impact Weapon 4 | . . . . . . 2 . 1 1 . . Slashing Weapon 3 | . . . . . . 3 . . . . . Piercing Weapon . | . . . . . . . . . . . . Special Melee Weapon . | . . . . . . . . . . . . Unidentified Prototypes 15 | . . . . . 5 5 1 . . 1 3 Corrupted Parts 2 | . . . . . . 1 . 1 . . . System Corruption 14 | . . . . . . 10 . 4 . . . Parts Lost 76 | . . 1 . . 16 21 13 3 1 5 16 Power 16 | . . . . . 4 7 1 1 . 1 2 Propulsion 32 | . . . . . 4 10 7 . 1 . 10 Utility 12 | . . 1 . . 1 2 1 1 . 2 4 Weapon 16 | . . . . . 7 2 4 1 . 2 . Highest Loss Streak 16 | . . 1 . . 4 6 5 2 1 4 16 To Critical Strikes 1 | . . . . . 1 . . . . . . Average Slot Usage (%) 80 | . 92 98 61 85 96 84 61 47 35 58 42 Engine 2 | . 2 . . . 5 5 . . . . 1 Core 6 | . 9 14 14 14 12 3 . . . . . Treads 1 | . . . . . 2 . 4 . 2 6 3 Leg 4 | . . . . . 13 . . . 2 6 9 Hover 18 | . 14 28 28 28 17 32 6 9 3 4 1 Flight 3 | . . . . . . 4 11 3 4 14 10 Device 1 | . . . . . . 3 1 2 5 4 5 Storage 6 | . 14 14 14 14 10 3 . 3 . . . Processor 4 | . . . . . . 4 17 6 5 4 4 Hackware 3 | . 10 12 . . . . 3 8 5 2 . Protection 2 | . . . . . 7 2 . . 2 3 . Energy Gun 4 | . . . . . 8 8 . . . . 1 Energy Cannon 1 | . 10 . . . . . . 8 . . 2 Ballistic Gun 9 | . 16 28 4 28 14 4 . . . 1 . Impact Weapon 2 | . . . . . . 4 5 2 4 2 . Slashing Weapon 1 | . . . . . . 3 2 . . . . Peak Build Rating 116 | 5 16 20 17 17 46 55 57 58 70 116 116 Average Rating 37 | 3 13 16 13 17 33 43 40 44 41 94 80 On Entrance 30 | . 5 16 17 17 17 46 39 17 20 70 107 Naked Turns . | . . . . . . . . . . . . Heaviest Build 43 | 8 18 16 16 16 40 36 19 28 6 43 26 Greatest Support 78 | 26 26 19 19 19 63 66 28 28 28 78 78 Greatest Overweight (x) 11 | . 2 1 . . 11 1 5 6 1 1 6 Average Overweight (x) . | . . . . . . . 1 . . . . Largest Inventory Capacity 8 | 8 8 8 8 8 8 8 5 5 5 5 5 Average Capacity 6 | 6 8 8 8 8 8 6 5 5 5 5 5 Most Carried 8 | 4 8 8 8 8 8 8 5 5 5 5 5 Average Carried 6 | 1 7 7 8 8 7 6 4 4 4 4 3 Final Capacity 8 | 8 8 8 8 8 8 5 5 5 5 5 5 Final Carried 8 | 1 8 8 8 8 6 5 3 5 5 4 5 Class Distribution -------------------- 42% | Mutant 11% | Scavenger-Tank 10% | Gunner 10% | Tank 7% | Sprinter 4% | Hacker-Mutant 4% | Scavenger-Gladiator 3% | Gladiator Dominant Class ---------------- Mutant | -10/Materials Mutant | -10/Mines Mutant | -10/Exiles Mutant | -9/Mines Scavenger-Tank | -8/Materials Sprinter | -7/Factory Mutant | -6/Factory Mutant | -5/Factory Mutant | -4/Factory Mutant | -3/Research Mutant | -2/Research Resources | -11 -10 -10 -10 -9 -8 -7 -6 -5 -4 -3 -2 ----------- Run | Yrd Mat Min Exi Min Mat Fac Fac Fac Fac Res Res Matter Collected 3982 | 225 172 259 . 89 1896 959 137 110 28 107 . Remotely . | . . . . . . . . . . . . Salvage Created 5525 | . 332 166 . . 1818 2066 738 148 28 198 31 Parts 220 | . 22 4 . . 94 77 13 2 . 6 2 Haulers Intercepted 10 | . 1 . . . 4 3 1 1 . . . Recyclers Shooed 6 | . . . . . 3 2 1 . . . . Parts Field Recycled . | . . . . . . . . . . . . Retrieved Matter . | . . . . . . . . . . . . Parts Self-Destructed . | . . . . . . . . . . . . Prevented . | . . . . . . . . . . . . Kills | -11 -10 -10 -10 -9 -8 -7 -6 -5 -4 -3 -2 ------- Run | Yrd Mat Min Exi Min Mat Fac Fac Fac Fac Res Res Combat Hostiles Destroyed 98 | . 6 8 . . 35 37 8 . 1 2 1 Melee 13 | . . . . . . 9 3 . . 1 . Guns 48 | . 1 8 . . 29 10 . . . . . Cannons 8 | . 4 . . . 4 . . . . . . AOE 11 | . . . . . 2 9 . . . . . Classes Destroyed 16 | . 4 2 . . 7 3 . . . . . Worker 6 | . 1 1 . . . 2 . 1 . 1 . Builder 4 | . . 1 . . 1 . 2 . . . . Tunneler 2 | . . . . . 1 . . 1 . . . Hauler 10 | . 1 . . . 4 3 1 1 . . . Recycler 12 | . . . . . 4 7 1 . . . . Mechanic 2 | . . . . . 1 1 . . . . . Operator 5 | . 1 . . . . 2 1 1 . . . Watcher 3 | . . . . . . 3 . . . . . Swarmer 17 | . . . . . 5 10 . . 1 . 1 Cutter 6 | . . . . . 3 3 . . . . . Grunt 48 | . 6 1 . . 18 19 4 . . . . Duelist 1 | . . . . . . 1 . . . . . Sentry 8 | . . . . . 4 1 1 . . 2 . Hunter 7 | . . . . . 5 . 2 . . . . Programmer 4 | . . . . . . 3 1 . . . . Assembled 7 | . . 7 . . . . . . . . . Best Kill Streak 6 | . 4 2 . . 5 6 3 3 1 2 1 Combat Bots Only 6 | . 2 2 . . 4 6 2 . 1 1 1 Max Kills in Single Turn 4 | . 2 1 . . 2 4 1 1 1 1 1 Gunslinging 1 | . . . . . . 1 . . . . . Exploded 4 | . . . . . 2 4 . . . . . Melee 1 | . . . . . . 1 1 . . 1 . Uniques/NPCs Destroyed . | . . . . . . . . . . . . Combat | -11 -10 -10 -10 -9 -8 -7 -6 -5 -4 -3 -2 -------- Run | Yrd Mat Min Exi Min Mat Fac Fac Fac Fac Res Res Hostile Shots Fired 1094 | . 24 18 . 5 260 274 145 81 54 62 171 Missed 370 | . 8 5 . 3 58 120 38 41 28 16 53 Damage Taken 12428 | . 202 208 . 22 2958 2438 1310 903 336 1156 2895 Core 3568 | . 43 23 . 22 417 459 439 419 196 85 1465 Absorbed by Shields . | . . . . . . . . . . . . Redirected to Shielding 213 | . . . . . . 112 . . 22 79 . Ignored by Resistances 125 | . . . . . 125 . . . . . . Regen/Repaired (Parts) 426 | . 22 . . . 182 222 . . . . . Core Remaining (%) 62 | 100 . . . 64 24 34 48 58 82 93 . Volleys Fired 247 | . 14 24 . 1 141 49 3 1 . 4 10 Largest 3 | . 2 2 . 2 3 3 1 1 . 1 1 Hottest 173 | . 124 46 . 46 142 173 28 81 . 35 94 Shots Fired 557 | . 25 48 . 3 351 112 3 1 . 4 10 Gun 461 | . 3 48 . 3 291 109 3 . . 4 . Cannon 90 | . 22 . . . 57 . . 1 . . 10 Launcher 6 | . . . . . 3 3 . . . . . Special . | . . . . . . . . . . . . Kinetic 408 | . 2 48 . 3 296 46 3 . . 4 6 Thermal 80 | . 5 . . . 32 43 . . . . . Explosive 6 | . . . . . 3 3 . . . . . Electromagnetic 63 | . 18 . . . 20 20 . 1 . . 4 Robot Hit Streak 20 | . 15 20 . 3 12 13 4 3 . 6 2 Robot Miss Streak 7 | . 1 6 . 2 5 7 3 . . 1 2 Penetration Max . | . . . . . . . . . . . . Secondary Targets 3 | . . . . . 2 1 . . . . . Max Gunslinging Chain 1 | . . . . . 1 1 . . . . . Shots Hit Robots 481 | . 19 27 . 3 220 150 39 6 1 11 5 Core Hits 239 | . 10 19 . . 89 106 11 1 . 2 1 Critical Kills 5 | . . . . . . 4 . . . 1 . Critical Parts Destroyed 16 | . . . . . 1 8 5 1 1 . . Critical Strikes 28 | . . . . . 2 15 8 1 1 1 . Burn 1 | . . . . . 1 . . . . . . Destroy 1 | . . . . . 1 . . . . . . Smash 20 | . . . . . . 12 5 1 1 1 . Sever 6 | . . . . . . 3 3 . . . . Melee Attacks 180 | . . . . . . 110 44 9 7 10 . Impact 150 | . . . . . . 90 34 9 7 10 . Slashing 30 | . . . . . . 20 10 . . . . Piercing . | . . . . . . . . . . . . Sneak Attacks 25 | . . . . . . 13 7 4 . 1 . Combat Hostiles . | . . . . . . . . . . . . Follow-up Attacks 5 | . . . . . . 3 2 . . . . Damage Inflicted 13833 | . 455 451 . 32 3809 6193 1742 500 38 461 152 Guns 4983 | . 31 438 . 32 2756 1557 80 . . 89 . Cannons 1471 | . 424 . . . 890 . . 42 . . 115 Explosions 1315 | . . . . . 160 1155 . . . . . Melee 6009 | . . . . . . 3481 1662 458 38 370 . Ramming 55 | . . 13 . . 3 . . . . 2 37 Kinetic 4326 | . 18 438 . 32 3080 500 80 . . 89 89 Thermal 1600 | . 76 . . . 283 1241 . . . . . Explosive 604 | . . . . . 160 444 . . . . . Electromagnetic 1239 | . 361 . . . 283 527 . 42 . . 26 Impact 5610 | . . . . . . 3328 1416 458 38 370 . Slashing 399 | . . . . . . 153 246 . . . . Piercing . | . . . . . . . . . . . . Highest Corruption 21 | . 1 6 6 6 . 13 1 6 . 3 21 Average Corruption 3 | . 1 1 6 6 . 5 1 5 . 2 12 Corruption Purged . | . . . . . . . . . . . . Corruption Blocked . | . . . . . . . . . . . . Effects 81 | . 5 9 3 3 . 47 4 1 . 1 8 Message Errors 16 | . . 3 1 . . 9 1 . . . 2 Matter Fused 23 | . 1 1 1 2 . 16 1 . . . 1 Heat Flow Errors 8 | . . 1 . . . 7 . . . . . Energy Discharges 12 | . 3 1 . . . 6 . 1 . 1 . Parts Rejected 2 | . . 1 . . . . . . . . 1 Data Loss (minor) 6 | . 1 . 1 . . 4 . . . . . Data Loss (major) 2 | . . . . . . 1 . . . . 1 Misfires 3 | . . 1 . 1 . 1 . . . . . Alerts 3 | . . . . . . 1 2 . . . . Misdirections 4 | . . . . . . 1 . . . . 3 Weapon Failures 2 | . . 1 . . . 1 . . . . . Overload Shots . | . . . . . . . . . . . . Overflow Damage 2109 | . . . . . 30 1150 620 161 38 99 11 Projectiles 42 | . . . . . 24 . . 7 . . 11 Explosions 196 | . . . . . 6 190 . . . . . Melee 1871 | . . . . . . 960 620 154 38 99 . Knockbacks 38 | . . . . . 11 17 6 . . 1 3 Impact 25 | . . . . . . 17 6 . . 1 1 Kinetic 10 | . . . . . 9 . . . . . 1 Secondary 3 | . . . . . 2 . . . . . 1 Self-Inflicted Damage 464 | . . 6 . . 96 360 . . . . 2 Shots 10 | . . . . . 2 8 . . . . . Rammed 6 | . . 1 . . 2 . . . . . 3 Targets Rammed 24 | . . 1 . . 2 . . . . 2 19 Kicked 18 | . . . . . . . . . . 2 16 Crushed . | . . . . . . . . . . . . Highest Temperature 462 | . 132 171 . 4 462 447 . 12 . . 16 Average Temperature 134 | . 40 43 . 2 152 117 . 8 . . 12 Received Heat Transfer 2527 | . 129 78 . 12 864 705 486 154 9 90 . Effects 23 | . . . . . 19 4 . . . . . Shutdowns 12 | . . . . . 12 . . . . . . Energy Bleed 4 | . . . . . 2 2 . . . . . Interference 3 | . . . . . 1 2 . . . . . Matter Decay 2 | . . . . . 2 . . . . . . Short Circuit 1 | . . . . . 1 . . . . . . Damage (minor) 1 | . . . . . 1 . . . . . . Siege Activations . | . . . . . . . . . . . . Robots Corrupted 24 | . 1 . . . . 13 6 . 1 2 1 Combat Hostiles 18 | . 1 . . . . 9 5 . 1 1 1 Parts Fried 35 | . 1 . . . . 12 13 5 2 2 . Impact Corruptions 60 | . . . . . . 31 19 4 1 4 1 Robots Melted . | . . . . . . . . . . . . Combat Hostiles . | . . . . . . . . . . . . Parts Melted 1 | . . . . . . 1 . . . . . Heat Transferred 1660 | . 148 . . . 592 920 . . . . . Parts Sabotaged . | . . . . . . . . . . . . Parts Stolen . | . . . . . . . . . . . . Parts Stripped . | . . . . . . . . . . . . Power Chain Reactions 1 | . . . . . . 1 . . . . . Alert | -11 -10 -10 -10 -9 -8 -7 -6 -5 -4 -3 -2 ------- Run | Yrd Mat Min Exi Min Mat Fac Fac Fac Fac Res Res Peak Influence 1725 | . 197 41 . 60 869 1725 1174 556 388 303 179 Initial 1100 | . . . . . 23 373 1100 481 233 203 164 Average 513 | . 64 5 . 6 391 869 1023 452 276 254 143 Maximum Alert Level 5 | . . . . . 3 5 4 2 1 1 . Low Security (%) 27 | 100 100 100 . 100 25 . . . . . 100 Level 1 19 | . . . . . 35 4 . 25 100 100 . Level 2 22 | . . . . . 18 46 . 74 . . . Level 3 19 | . . . . . 20 21 63 . . . . Level 4 7 | . . . . . . 11 36 . . . . Level 5 2 | . . . . . . 8 . . . . . High Security 1 | . . . . . . 7 . . . . . Max Security . | . . . . . . . . . . . . Squads Dispatched 42 | . 3 . . . 13 15 7 2 . 1 1 Investigation 9 | . 1 . . . 4 2 1 . . 1 . Extermination 6 | . . . . . . 3 2 1 . . . Reinforcement 16 | . 2 . . . 6 4 2 1 . . 1 Assault 8 | . . . . . . 6 2 . . . . Garrison 3 | . . . . . 3 . . . . . . Intercept . | . . . . . . . . . . . . Searches Triggered 1 | . . . . . . . . 1 . . . Construction Impeded . | . . . . . . . . . . . . Haulers Reinforced 1 | . . . . . . 1 . . . . . Active Scanning Responses . | . . . . . . . . . . . . Cargo Convoy Interrupts . | . . . . . . . . . . . . Stealth | -11 -10 -10 -10 -9 -8 -7 -6 -5 -4 -3 -2 --------- Run | Yrd Mat Min Exi Min Mat Fac Fac Fac Fac Res Res Distress Signals 14 | . . . . 1 7 3 . 1 . 1 1 Communications Jammed 34 | . . . . . . . . . . 34 . Distress Signals 34 | . . . . . . . . . . 34 . Times Spotted 279 | . 11 18 . 6 68 98 18 28 8 8 16 Peak Tracking Total 18 | . 3 18 . 7 5 11 4 12 4 7 11 Tactical Retreats 59 | . 1 5 . 2 12 20 6 6 5 . 2 Traps | -11 -10 -10 -10 -9 -8 -7 -6 -5 -4 -3 -2 ------- Run | Yrd Mat Min Exi Min Mat Fac Fac Fac Fac Res Res Traps Triggered 7 | . 1 . . . 2 2 1 1 . . . Indirectly . | . . . . . . . . . . . . Trap Hack Attempts . | . . . . . . . . . . . . Triggered . | . . . . . . . . . . . . Disarmed . | . . . . . . . . . . . . Reprogrammed . | . . . . . . . . . . . . Reused . | . . . . . . . . . . . . Traps Extracted . | . . . . . . . . . . . . Installed . | . . . . . . . . . . . . Triggered . | . . . . . . . . . . . . Machines | -11 -10 -10 -10 -9 -8 -7 -6 -5 -4 -3 -2 ---------- Run | Yrd Mat Min Exi Min Mat Fac Fac Fac Fac Res Res Machines Disabled 15 | . . . . . 10 5 . . . . . Max in Single Turn 2 | . . . . . 2 2 . . . . . Garrison Access 3 | . . . . . . 3 . . . . . Machines Repaired . | . . . . . . . . . . . . Machines Dismantled . | . . . . . . . . . . . . Machines Sabotaged . | . . . . . . . . . . . . Overloaded Fab Kills . | . . . . . . . . . . . . Hacking | -11 -10 -10 -10 -9 -8 -7 -6 -5 -4 -3 -2 --------- Run | Yrd Mat Min Exi Min Mat Fac Fac Fac Fac Res Res Machines Accessed 21 | . 3 . 1 . 5 10 1 . . 1 . Terminals 7 | . 2 . . . 3 1 . . . 1 . Fabricators 4 | . . . . . . 3 1 . . . . Repair Stations 4 | . 1 . . . 1 2 . . . . . Recycling Units 1 | . . . . . . 1 . . . . . Scanalyzers 1 | . . . . . 1 . . . . . . Garrison Access 3 | . . . . . . 3 . . . . . Total Hacks 78 | . 13 . 9 . 23 26 5 . . 2 . Successful 50 | . 9 . 9 . 12 18 2 . . . . Failed 27 | . 3 . . . 11 8 3 . . 2 . Catastrophic 4 | . 1 . . . 2 . . . . 1 . Database Lockouts 1 | . 1 . . . . . . . . . . Manual 16 | . 3 . . . 10 3 . . . . . Terminals 21 | . 6 . . . 10 3 . . . 2 . Fabricators 12 | . . . . . . 7 5 . . . . Repair Stations 23 | . 7 . . . 8 8 . . . . . Recycling Units 2 | . . . . . . 2 . . . . . Scanalyzers 5 | . . . . . 5 . . . . . . Garrison Access 6 | . . . . . . 6 . . . . . Terminal Hacks 14 | . 3 . 9 . 2 . . . . . . Record 10 | . 1 . 9 . . . . . . . . Robot Analysis 3 | . 1 . . . 2 . . . . . . Alert Level 1 | . 1 . . . . . . . . . . Fabricator Hacks 7 | . . . . . . 5 2 . . . . Network Status 2 | . . . . . . 1 1 . . . . Load Schematic 3 | . . . . . . 2 1 . . . . Build 2 | . . . . . . 2 . . . . . Repair Station Hacks 18 | . 6 . . . 6 6 . . . . . Scan Component 9 | . 3 . . . 3 3 . . . . . Repair 9 | . 3 . . . 3 3 . . . . . Recycling Unit Hacks 2 | . . . . . . 2 . . . . . Report Inventory 1 | . . . . . . 1 . . . . . Retrieve Components 1 | . . . . . . 1 . . . . . Scanalyzer 4 | . . . . . 4 . . . . . . Insert Component 2 | . . . . . 2 . . . . . . Analyze 2 | . . . . . 2 . . . . . . Garrison Access Hacks 3 | . . . . . . 3 . . . . . Seal Access 3 | . . . . . . 3 . . . . . Unauthorized Hacks 2 | . . . . . . 2 . . . . . Terminals 2 | . . . . . . 2 . . . . . Assimilate 1 | . . . . . . 1 . . . . . Botnet 1 | . . . . . . 1 . . . . . Fabricators . | . . . . . . . . . . . . Repair Stations . | . . . . . . . . . . . . Recycling Units . | . . . . . . . . . . . . Scanalyzers . | . . . . . . . . . . . . Garrison Access . | . . . . . . . . . . . . Data Cores Recovered . | . . . . . . . . . . . . Used . | . . . . . . . . . . . . Hacking Detections 17 | . 1 . . . 5 9 1 . . 1 . Full Trace Events 7 | . 1 . . . 2 2 1 . . 1 . Feedback Events . | . . . . . . . . . . . . Feedback Blocked . | . . . . . . . . . . . . Robot Schematics Acquired . | . . . . . . . . . . . . Robots Built . | . . . . . . . . . . . . Authchips . | . . . . . . . . . . . . Time . | . . . . . . . . . . . . Total Robot Build Rating . | . . . . . . . . . . . . Part Schematics Acquired 2 | . . . . . 2 . . . . . . Parts Built 2 | . . . . . . 2 . . . . . Authchips . | . . . . . . . . . . . . Time 268 | . . . . . . 268 . . . . . Total Part Build Rating 8 | . . . . . . 8 . . . . . Parts Repaired 9 | . 3 . . . 3 3 . . . . . Time 417 | . 96 . . . 210 111 . . . . . Parts Recycled . | . . . . . . . . . . . . Recycled Matter . | . . . . . . . . . . . . Retrieved Matter . | . . . . . . . . . . . . Retrieved Components 4 | . . . . . . 4 . . . . . Parts Scanalyzed 2 | . . . . . 2 . . . . . . Part Schematics Acquired 2 | . . . . . 2 . . . . . . Parts Damaged 1 | . . . . . 1 . . . . . . Bothacking | -11 -10 -10 -10 -9 -8 -7 -6 -5 -4 -3 -2 ------------ Run | Yrd Mat Min Exi Min Mat Fac Fac Fac Fac Res Res Used RIF Installer . | . . . . . . . . . . . . Robots Hacked . | . . . . . . . . . . . . Non-combat . | . . . . . . . . . . . . Combat . | . . . . . . . . . . . . Robot Hacks Applied . | . . . . . . . . . . . . Relay Couplers Released . | . . . . . . . . . . . . Fabnet Peak Effective % . | . . . . . . . . . . . . Robots Rewired . | . . . . . . . . . . . . Allies Hacked . | . . . . . . . . . . . . Hacks Repelled . | . . . . . . . . . . . . Allies | -11 -10 -10 -10 -9 -8 -7 -6 -5 -4 -3 -2 -------- Run | Yrd Mat Min Exi Min Mat Fac Fac Fac Fac Res Res Total Allies 2 | . . 1 . . . 1 . . . . . Largest Group 1 | . . 1 . . . 1 . . . . . Highest-Rated Group 31 | . . 31 . . . 10 . . . . . Highest-Rated Ally 31 | . . 31 . . . 10 . . . . . Total Orders 2 | . . . . . . 2 . . . . . STAY 1 | . . . . . . 1 . . . . . FOLLOW 1 | . . . . . . 1 . . . . . Ally Attacks 5 | . . 5 . . . . . . . . . Total Damage 62 | . . 62 . . . . . . . . . Kills 1 | . . 1 . . . . . . . . . Allies Corrupted . | . . . . . . . . . . . . Allies Melted 1 | . . 1 . . . . . . . . . Intel | -11 -10 -10 -10 -9 -8 -7 -6 -5 -4 -3 -2 ------- Run | Yrd Mat Min Exi Min Mat Fac Fac Fac Fac Res Res Robot Analysis Total 3 | . 1 . . . 2 . . . . . . Derelict Logs Recovered 3 | . . 1 . 2 . . . . . . . Drone Launches . | . . . . . . . . . . . . Drone Recoveries . | . . . . . . . . . . . . Exploration | -11 -10 -10 -10 -9 -8 -7 -6 -5 -4 -3 -2 ------------- Run | Yrd Mat Min Exi Min Mat Fac Fac Fac Fac Res Res Turns Passed 8764 | 41 681 739 120 104 2457 2109 1092 649 336 226 210 Spaces Moved 7910 | 42 465 635 174 142 1580 2825 595 656 463 196 137 Core 395 | 16 . . . . 1 . 211 35 80 . 52 Treads 172 | . . . . . 128 . 44 . . . . Legs 484 | . . . . . 394 . . . . 30 60 Wheels 220 | 26 194 . . . . . . . . . . Hover 5889 | . 271 635 174 142 1057 2702 340 488 80 . . Flight 750 | . . . . . . 123 . 133 303 166 25 Fastest Speed 16 | 50 80 66 66 66 22 16 48 40 40 64 40 Average Speed 69 | 74 104 97 66 66 90 35 118 70 63 85 83 Slowest Speed 600 | 90 185 116 66 66 600 110 300 350 100 180 350 Overloaded Moves 185 | . . . . . 50 135 . . . . . Propulsion Burnouts . | . . . . . . . . . . . . Robots Hopped . | . . . . . . . . . . . . Cave-ins Triggered . | . . . . . . . . . . . . Exploration Rate (%) 38 | 3 66 98 40 40 90 61 10 21 16 8 4 Regions Visited 11 Branch Regions 3 Pre-discovered Areas 2 | . . 1 1 . . . . . . . . Known Exits Taken 3 | . . . . 1 . 1 1 . . . . Unknown Exits Taken 8 | 1 1 1 1 . 1 . . 1 1 1 . Scrap Searched 2 | . . 1 . 1 . . . . . . . Spaces Dug 27 | . . . . . . 16 2 4 5 . . Terrain Destroyed 114 | . . . . . 20 79 2 4 5 . 4 Melee 27 | . . . . . . 16 2 4 5 . . Projectile 7 | . . . . . 3 . . . . . 4 AOE 80 | . . . . . 17 63 . . . . . Terrain Rammed . | . . . . . . . . . . . . Walls Destroyed . | . . . . . . . . . . . . Machines Disabled . | . . . . . . . . . . . . Actions | -11 -10 -10 -10 -9 -8 -7 -6 -5 -4 -3 -2 --------- Run | Yrd Mat Min Exi Min Mat Fac Fac Fac Fac Res Res Total 10312 | 50 629 708 178 150 2323 3628 892 821 489 228 216 Wait 1655 | . 117 38 1 6 492 586 226 138 7 6 38 Move 7900 | 41 464 634 173 141 1579 2824 594 655 462 196 137 Hop . | . . . . . . . . . . . . Pick Up 51 | 4 12 2 . 1 14 12 . 3 3 . . Fast Attach 87 | 2 4 1 2 . 19 22 7 10 5 8 7 Attach 21 | 3 1 . . . 9 2 1 . 2 1 2 Detach 6 | . . . . . 1 . . 1 . 1 3 Swap 85 | . 11 3 . . 39 24 4 2 1 1 . Drop 60 | . 6 5 2 1 27 14 1 2 2 . . Fire 247 | . 14 24 . 1 141 49 3 1 . 4 10 Melee 160 | . . . . . . 93 41 9 7 10 . Ram 4 | . . 1 . . . . . . . . 3 Kick 17 | . . . . . . . . . . 1 16 Crush 2 | . . . . . 2 . . . . . . Escape Stasis 17 | . . . . . . 2 15 . . . . Rewire . | . . . . . . . . . . . . Trap . | . . . . . . . . . . . . Miscellaneous . | . . . . . . . . . . . . Route ------- -11/Scrapyard -10/Materials (discovered 3 exits: [*Mat x2] / [*Min]) -10/Mines (discovered 3 exits: [*Mat x2] / *Exi) -10/Exiles -9/Mines (discovered 2 exits: *Mat x2) -8/Materials (discovered 5 exits: *Fac x3 / [*Sto x2]) -7/Factory (discovered 2 exits: *Fac x2) -6/Factory -5/Factory -4/Factory -3/Research -2/Research (discovered 1 exit: [*Acc]) History --------- Turn | Location | Event 4 | -11/Scrapyard | Discovered new exit (range 15) 42 | -11/Scrapyard | Entered Materials 215 | -10/Materials | Discovered new exit (range 13) 219 | -10/Materials | Central database locked down 299 | -10/Materials | Discovered new exit (range 10) 353 | -10/Materials | Build established: Mutant 460 | -10/Materials | Repaired Imp. Hover Unit 492 | -10/Materials | Repaired Imp. Hover Unit 530 | -10/Materials | Repaired Imp. Hover Unit 710 | -10/Materials | Discovered new exit (range 11) 723 | -10/Materials | Entered Mines 802 | -10/Mines | Received a Rocket Launcher from a helpful Derelict 814 | -10/Mines | Assembled infested the area 866 | -10/Mines | Found a hidden stash of uninstalled traps 930 | -10/Mines | Received a Mining Laser from a helpful Derelict 1038 | -10/Mines | Learned location of Storage (-8) 1118 | -10/Mines | Discovered new exit (range 9) 1344 | -10/Mines | Discovered new exit (range 10) 1459 | -10/Mines | Deemed a non-threat by the Exiles lab entrance 1459 | -10/Mines | Discovered new exit (range 5) 1462 | -10/Mines | Entered Exiles 1472 | -10/Exiles | Discovered new exit (range 15) 1483 | -10/Exiles | Met 8R-AWN 1494 | -10/Exiles | Met EX-HEX 1525 | -10/Exiles | Learned location of Zion (-7) 1527 | -10/Exiles | Met EX-DEC 1582 | -10/Exiles | Entered Mines 1586 | -9/Mines | Discovered new exit (range 13) 1633 | -9/Mines | Identified exit to Materials 1686 | -9/Mines | Entered Materials 1686 | -8/Materials | Evolved 4 slots: Power x1, Propulsion x2, Weapon x1 1791 | -8/Materials | Discovered new exit (range 10) 1935 | -8/Materials | Discovered new exit (range 10) 2149 | -8/Materials | Build established: Tank 2459 | -8/Materials | Discovered new exit (range 7) 2561 | -8/Materials | Build established: Scavenger-Tank 2575 | -8/Materials | Core integrity fell below 50% 2659 | -8/Materials | Lost 3 parts (1p2n) 2747 | -8/Materials | Discovered new exit (range 9) 3103 | -8/Materials | Discovered new exit (range 9) 3508 | -8/Materials | Build established: Tank 3627 | -8/Materials | Garrison activated, responded to threat 3711 | -8/Materials | Lost 4 parts (1p1u2w) 3878 | -8/Materials | Repaired Cld. Airjet 3949 | -8/Materials | Repaired Cld. Airjet 4021 | -8/Materials | Repaired Cld. Airjet 4042 | -8/Materials | Build established: Gunner 4143 | -8/Materials | Entered Factory 4143 | -7/Factory | Evolved 2 slots: Propulsion x2 4592 | -7/Factory | Fabricated Cld. Airjet? 4988 | -7/Factory | Lost 3 parts (1n1u1w) 5264 | -7/Factory | Fabricated Cld. Airjet (x1) 5314 | -7/Factory | Repaired Cld. Airjet 5343 | -7/Factory | First assault squad dispatched 5646 | -7/Factory | Discovered new exit (range 5) 5650 | -7/Factory | Identified exit to Factory 5688 | -7/Factory | Core integrity fell below 50% 5702 | -7/Factory | Lost 6 parts (2p3n1w) 5712 | -7/Factory | System corruption reached 10% 5951 | -7/Factory | Discovered exit to Factory (range 16) 5967 | -7/Factory | Lost 4 parts (2p2n) 6015 | -7/Factory | Repaired Reaction Control System 6055 | -7/Factory | Repaired Great Maul 6103 | -7/Factory | High security lockdown imminent 6183 | -7/Factory | High security lockdown engaged 6252 | -7/Factory | Entered another Factory area 6252 | -6/Factory | Evolved 2 slots: Utility x2 6327 | -6/Factory | Discovered new exit (range 7) 6509 | -6/Factory | Identified exit to Factory 6665 | -6/Factory | Lost 4 parts (3n1u) 6864 | -6/Factory | Build established: Mutant 7302 | -6/Factory | First assault squad dispatched 7312 | -6/Factory | Core integrity fell below 50% 7336 | -6/Factory | Lost 5 parts (1p2n2w) 7339 | -6/Factory | Build established: Hacker-Mutant 7344 | -6/Factory | Entered another Factory area 7344 | -5/Factory | Evolved 2 slots: Propulsion x2 7944 | -5/Factory | Search patrols dispatched 7980 | -5/Factory | Discovered new exit (range 8) 7993 | -5/Factory | Entered another Factory area 7993 | -4/Factory | Evolved 2 slots: Propulsion x2 7998 | -4/Factory | Build established: Mutant 8158 | -4/Factory | Discovered new exit (range 19) 8329 | -4/Factory | Entered Research 8329 | -3/Research | Evolved 2 slots: Propulsion x2 8337 | -3/Research | Found Prototype Processor 8337 | -3/Research | Identified Spectral Analyzer 8546 | -3/Research | Discovered new exit (range 6) 8555 | -3/Research | Entered another Research area 8555 | -2/Research | Evolved 2 slots: Propulsion x2 8564 | -2/Research | Lost 4 parts (1p1u2w) 8639 | -2/Research | System corruption reached 10% 8749 | -2/Research | Core integrity fell below 50% 8762 | -2/Research | Discovered new exit (range 5) 8763 | -2/Research | Core integrity fell below 20% 8765 | -2/Research | Destroyed by C-57 Dissector with Dual-blade Saw Last Messages --------------- 08736_ Slammed into P-80 Master. 08737_ System corrupted: Substantial component data lost. 08738_ Spectral Analyzer destroyed. 08739_ K-01 Serf collects debris. 08743_ Acquired Quantum Reactor. 08748_ Slammed into S-43 Plague. 08748_ Destabilizing: System interference. 08748_ Machine Analyzer temporarily disabled. 08754_ P-80 Master resets S-43 Plague, system corruption cleaned. 08754_ P-80 Master resets P-80 Master, system corruption cleaned. 08755_ Quantum Reactor destroyed. 08756_ S-43 Plague destroyed. 08758_ WMOOIYSMAPCNVH<<,6T0BVNJDNMN ,LNPN2 08758_ ALERT: Suspicious intruders detected, dispatching Cutter reinforcements to area. 08762_ EXIT=FOUND 08762_ Knocked back. 08763_ Slammed into C-57 Dissector. 08763_ Destabilizing: System corrupted (+1). 08764_ Knocked back. Map ----- +----------------------------------------------------+ | | | | | | | | | | | | | | | | | | | | | | | | | | | | | ?????????????????????????????????????????????????? | | ?????????????????????????????????????????????????? | | ?????????????????????????????????????????????????? | | ??????????????????????###????????????????????????? | | ?????????????????????? #????????????????????????? | | ??????????????????????# #????????????????????????? | | ????????????????????###k###??????????????????????? | | ????????????????????# #??????????????????????? | | ????????????????????# ###????????????????????? | | ????????????????????# H ?????????????????????? | | ????????????????????# = c #??????????????????????? | | ????????????????????# c@#??????????????????????? | | ????????????????????## cc##??????????????????????? | | ????????????????###### #???????????????????????? | | ????????????????# %##??????????????????????? | | ????????????????# ss% +??????????????????????? | | ????????????????# ##??????????????????????? | | ####????###########+########?????????????????????? | | ! #????# # #?????????????????????? | | #????# # #?????????????????????? | | #????# + ! #?????????????????????? | | #????# # #?????????????????????? | | #????# # #?????????????????????? | | #????# # """ #?????????????????????? | | #????# # """ #?????????????????????? | | #????# =% # """ #?????????????????????? | | #????# ###########?????????????????????? | | "############+####???????????????????????????????? | | %[ #???????????????????????????????? | | * #???????????????????????????????? | | #???????????????????????????????? | | #???????????????????????????????? | | "#####/###### #???????????????????????????????? | | ### # #???????????????????????????????? | | ??# # #???????????????????????????????? | | ??# !! # #???????????????????????????????? | +----------------------------------------------------+ Best States ------------- Heat Dissipation 49 Energy Generation 25 Energy Capacity 450 Matter Stores 450 Matter Capacity 450 Sight Range 24 Terrain Scan Density 10 Jamming Range 14 Additional Mass Support 16 Armor Coverage 600 Resistance: KI 20 Resistance: TH 20 Power Shielding 66 Propulsion Shielding 66 Phase Shifting 5 Evasion (%) 72 Melee Accuracy 8 Recoil Reduction 3 Offensive Hacking 10 Defensive Hacking 10 Item Schematics ----------------- Assault Cannon | -8/Materials | Scanalyzed Cld. Airjet | -8/Materials | Scanalyzed Robot Schematics ------------------ None Fabricated ------------ Cld. Airjet | x1 | -7/Factory Cld. Airjet | x1 | -7/Factory Alien Tech Used ----------------- None Achievements -------------- Deadly Force Whoosh! Challenges ------------ None Game ------ Seed MetaStasisDrivehammer Manual? 0 Play Time 01:35:29 Cumulative 87.9 hours Start 2024.09.16 @ 19:16:57 End 2024.09.17 @ 20:10:34 Sessions 3 Manual Loads 0 Difficulty Rogue Special Mode None Game No. 152 Rogue 152 Adventurer 0 Explorer 0 Win Type - Total 0 Types 0/0/0/0/0/0/0/0/0 Lore% 45 Gallery% 49 Achievement% 40 Wizard Run 0 Options --------- Layout 0 ASCII 0 Keyboard 1 Movement Numpad Keybinds 0 Fullscreen 2 Font 18/SmallcapsGlow Map View 76x50 Zoom Use 0% Tactical HUD 1 Map Filters NONE Filters NONE Steam 1 RUN: 47fb1c40-96f2-46d5-b427-7276fa8de9ee